fUST/lending_fUST_20240927
["ID","MTS","AMOUNT","RATE_DAILY","PERIOD"]
[339226568,1727376452239,-3000.0,0.0002119,2]
[339226569,1727376452261,-506.6471856,0.000212,2]
[339226570,1727376452284,-3000.0,0.000212,2]
[339226571,1727376452307,-3000.0,0.0002121,2]
[339226572,1727376452332,-3000.0,0.0002122,2]
[339226573,1727376452355,-3000.0,0.0002123,2]
[339226574,1727376452377,-3000.0,0.0002124,2]
[339226575,1727376452400,-3000.0,0.0002125,2]
[339226576,1727376452422,-3000.0,0.0002126,2]
[339226577,1727376452445,-3000.0,0.0002127,2]
[339226578,1727376452469,-3000.0,0.0002128,2]
[339226579,1727376452490,-3000.0,0.0002129,2]
[339226580,1727376452511,-3000.0,0.000213,2]
[339226581,1727376452537,-3000.0,0.0002131,2]
[339226582,1727376452559,-3000.0,0.0002132,2]
[339226583,1727376452583,-3000.0,0.0002133,2]
[339226584,1727376452605,-3000.0,0.0002134,2]
[339226585,1727376452632,-3000.0,0.0002135,2]
[339226586,1727376452655,-3000.0,0.0002136,2]
[339226587,1727376452679,-3000.0,0.0002137,2]
[339226588,1727376452704,-3000.0,0.0002138,2]
[339226589,1727376452726,-3000.0,0.0002139,2]
[339226590,1727376452750,-3000.0,0.000214,2]
[339226591,1727376452773,-3000.0,0.0002141,2]
[339226592,1727376452795,-3000.0,0.0002142,2]
[339226593,1727376452816,-3000.0,0.0002143,2]
[339226594,1727376452838,-3000.0,0.0002144,2]
[339226595,1727376452860,-465.00256198,0.00021442,2]
[339226596,1727376452882,-465.00172935,0.00021442,2]
[339226597,1727376452909,-3000.0,0.0002145,2]
[339226598,1727376452932,-280.0,0.0002146,2]
[339226599,1727376452954,-3000.0,0.0002146,2]
[339226600,1727376452978,-5486.301049,0.0002147,2]
[339226601,1727376453001,-250.0,0.00021621,2]
[339226602,1727376453024,-2528.16504162,0.00021741,2]
[339226603,1727376453047,-500.0,0.00021917,2]
[339226604,1727376453070,-750.99,0.00021917,2]
[339226605,1727376453094,-750.99,0.00021917,2]
[339226606,1727376453119,-750.99,0.00021917,2]
[339226607,1727376453141,-750.99,0.00021917,2]
[339226608,1727376453163,-750.99,0.00021917,2]
[339226609,1727376453187,-750.99,0.00021917,2]
[339226610,1727376453209,-750.99,0.00021917,2]
[339226611,1727376453232,-750.99,0.00021917,2]
[339226612,1727376453253,-750.99,0.00021917,2]
[339226613,1727376453277,-750.99,0.00021917,2]
[339226614,1727376453299,-750.99,0.00021917,2]
[339226615,1727376453325,-750.99,0.00021917,2]
[339226616,1727376453348,-750.99,0.00021917,2]
[339226617,1727376453370,-750.99,0.00021917,2]
[339226618,1727376453394,-750.99,0.00021917,2]
[339226619,1727376453416,-750.99,0.00021917,2]
[339226620,1727376453438,-750.99,0.00021917,2]
[339226621,1727376453460,-750.99,0.00021917,2]
[339226622,1727376453483,-750.99,0.00021917,2]
[339226623,1727376453504,-750.99,0.00021917,2]
[339226624,1727376453528,-750.99,0.00021917,2]
[339226625,1727376453550,-750.99,0.00021917,2]
[339226626,1727376453573,-750.99,0.00021917,2]
[339226627,1727376453594,-751.15171098,0.00021917,2]
[339226628,1727376453616,-163.75661155,0.00021918,2]
[339226629,1727376453638,-150.0,0.00021918,2]
[339226630,1727376453660,-280.0,0.0002192,2]
[339226631,1727376453687,-158.48573762,0.0002192,7]
[339226632,1727376453709,-158.48573762,0.0002192,7]
[339226633,1727376453733,-158.48573762,0.0002192,7]
[339226634,1727376453755,-158.48573762,0.0002192,7]
[339226635,1727376453778,-158.48573762,0.0002192,7]
[339226636,1727376453801,-158.48573762,0.0002192,7]
[339226637,1727376453824,-158.48573762,0.0002192,7]
[339226638,1727376453847,-158.48573762,0.0002192,7]
[339226639,1727376453869,-158.98,0.0002192,7]
[339226640,1727376453893,-285.34932772,0.0002192,7]
[339226641,1727376453916,-285.34932772,0.0002192,7]
[339226642,1727376453940,-285.34932772,0.0002192,7]
[339226643,1727376453964,-285.34932772,0.0002192,7]
[339226644,1727376453988,-285.34932772,0.0002192,7]
[339226645,1727376454012,-285.34932772,0.0002192,7]
[339226646,1727376454036,-285.34932772,0.0002192,7]
[339226647,1727376454060,-285.34932772,0.0002192,7]
[339226648,1727376454084,-285.34932772,0.0002192,7]
[339226649,1727376454107,-285.34932772,0.0002192,7]
[339226650,1727376454132,-285.34932772,0.0002192,7]
[339226651,1727376454155,-285.34932772,0.0002192,7]
[339226652,1727376454179,-285.34932772,0.0002192,7]
[339226653,1727376454202,-285.34932772,0.0002192,7]
[339226654,1727376454225,-285.34932772,0.0002192,7]
[339226655,1727376454248,-285.34932772,0.0002192,7]
[339226656,1727376454272,-285.34932772,0.0002192,7]
[339226657,1727376454294,-285.34932772,0.0002192,7]
[339226658,1727376454320,-285.34932772,0.0002192,7]
[339226659,1727376454341,-285.84,0.0002192,7]
[339226660,1727376454366,-176.59,0.0002192,7]
[339226661,1727376454387,-2000.0,0.0002199,2]
[339226662,1727376454561,-500.0,0.00021999,120]
[339226663,1727376454584,-500.0,0.00021999,120]
[339226664,1727376454605,-500.0,0.00021999,120]
[339226665,1727376454626,-500.0,0.00021999,120]
[339226666,1727376454648,-500.0,0.00021999,120]
[339226667,1727376454670,-500.0,0.00021999,120]
[339226668,1727376454691,-648.21850645,0.00021999,120]
[339226669,1727376454712,-500.0,0.00021999,120]
[339226670,1727376454733,-500.0,0.00021999,120]
[339226671,1727376454754,-501.79940572,0.00021999,120]
[339226672,1727376454777,-502.15306408,0.00021999,120]
[339226673,1727376454796,-502.52556057,0.00021999,120]
[339226674,1727376454818,-502.06917059,0.00021999,120]
[339226675,1727376454838,-339.84021882,0.00021999,5]
[339226676,1727376454859,-500.0,0.00021999,2]
[339226677,1727376454880,-500.0,0.00021999,2]
[339226678,1727376454902,-500.0,0.00021999,2]
[339226679,1727376454922,-500.0,0.00021999,2]
[339226680,1727376454944,-500.0,0.00021999,2]
[339226681,1727376454965,-500.0,0.00021999,30]
[339226682,1727376454986,-500.0,0.00021999,2]
[339226683,1727376455008,-500.0,0.00021999,30]
[339226684,1727376455030,-315.32222032,0.00021999,2]
[339226685,1727376455053,-641.6839944,0.00021999,30]
[339226686,1727376455074,-504.56709286,0.00021999,120]
[339226687,1727376455095,-500.0,0.00021999,120]
[339226688,1727376455118,-500.0,0.00021999,120]
[339226689,1727376455139,-504.82000243,0.00021999,120]
[339226690,1727376455161,-502.28433676,0.00021999,120]
[339226691,1727376455183,-285.33730379,0.00021999,120]
[339226692,1727376455205,-500.0,0.00021999,120]
[339226693,1727376455228,-500.0,0.00021999,120]
[339226694,1727376455254,-503.03317965,0.00021999,120]
[339226695,1727376455277,-500.0,0.00021999,120]
[339226696,1727376455298,-500.0,0.00021999,120]
[339226697,1727376455321,-339.8628852,0.00021999,120]
[339226698,1727376455343,-502.91320453,0.00021999,120]
[339226699,1727376455364,-500.0,0.00021999,120]
[339226700,1727376455386,-503.88229973,0.00021999,120]
[339226701,1727376455410,-501.0279355,0.00021999,120]
[339226702,1727376455431,-500.0,0.00021999,120]
[339226703,1727376455452,-500.0,0.00021999,120]
[339226704,1727376455472,-500.0,0.00021999,120]
[339226705,1727376455494,-387.08560347,0.00021999,120]
[339226706,1727376455514,-504.87022391,0.00021999,120]
[339226707,1727376455542,-500.0,0.00021999,120]
[339226708,1727376455563,-500.0,0.00021999,120]
[339226709,1727376455584,-511.33747234,0.00021999,120]
[339226710,1727376455604,-503.09312923,0.00021999,120]
[339226711,1727376455627,-500.0,0.00021999,120]
[339226712,1727376455649,-500.0,0.00021999,7]
[339226713,1727376455670,-500.0,0.00021999,120]
[339226714,1727376455690,-500.0,0.00021999,7]
[339226715,1727376455711,-500.0,0.00021999,120]
[339226716,1727376455733,-500.0,0.00021999,7]
[339226717,1727376455757,-382.71284575,0.00021999,120]
[339226718,1727376455782,-500.0,0.00021999,7]
[339226719,1727376455802,-500.0,0.00021999,7]
[339226720,1727376455823,-500.0,0.00021999,7]
[339226721,1727376455844,-389.08448722,0.00021999,7]
[339226722,1727376455865,-2662.98,0.00021999,2]
[339226723,1727376455887,-503.78496589,0.00021999,120]
[339226724,1727376455909,-2662.98,0.00021999,2]
[339226725,1727376455930,-2662.98,0.00021999,2]
[339226726,1727376455951,-2662.98,0.00021999,2]
[339226727,1727376455972,-2662.98,0.00021999,2]
[339226728,1727376455998,-2662.98,0.00021999,2]
[339226729,1727376456021,-2662.98,0.00021999,2]
[339226730,1727376456050,-2030.36555177,0.00021999,2]
[339226731,1727376456189,-632.61444823,0.00021999,2]
[339226732,1727376456209,-2662.98,0.00021999,2]
[339226733,1727376456228,-2662.98,0.00021999,2]
[339226734,1727376456250,-590.86001864,0.00021999,120]
[339226735,1727376456270,-2662.98,0.00021999,2]
[339226736,1727376456296,-2662.98,0.00021999,2]
[339226737,1727376456321,-2662.98,0.00021999,2]
[339226738,1727376456342,-2662.98,0.00021999,2]
[339226739,1727376456363,-1423.62012213,0.00021999,2]
[339226798,1727376631805,-166.666666,0.00018457,2]
[339226800,1727376631816,-151.0,0.00018666,2]
[339226802,1727376631826,-151.0,0.00018756,2]
[339226804,1727376631836,-151.0,0.00018766,2]
[339226806,1727376631846,-539.92,0.000188,2]
[339226807,1727376631857,-166.666666,0.0001896,2]
[339226809,1727376631867,-151.0,0.0001897,2]
[339226811,1727376631877,-151.0,0.0001897,2]
[339226813,1727376631886,-151.0,0.0001899,2]
[339226815,1727376631896,-151.0,0.0001928,2]
[339226816,1727376631906,-151.0,0.0001939,2]
[339226817,1727376631916,-166.666666,0.00019463,2]
[339226819,1727376631926,-151.0,0.00019595,2]
[339226821,1727376631936,-201.0,0.000196,2]
[339226822,1727376631945,-2158.82774869,0.000198,2]
[339226823,1727376631956,-166.666666,0.00019966,2]
[339226824,1727376631966,-243.012689,0.0001999,2]
[339226825,1727376631976,-166.666666,0.00020469,2]
[339226826,1727376631986,-300.0,0.0002063,2]
[339226827,1727376631996,-300.0,0.0002063,2]
[339226828,1727376632005,-505.0,0.00020631,2]
[339226829,1727376632015,-505.0,0.00020631,2]
[339226830,1727376632026,-505.0,0.00020631,2]
[339226831,1727376632035,-505.0,0.00020631,2]
[339226832,1727376632045,-505.0,0.00020631,2]
[339226833,1727376632055,-505.0,0.00020631,2]
[339226834,1727376632066,-505.0,0.00020631,2]
[339226835,1727376632076,-505.0,0.00020631,2]
[339226836,1727376632085,-505.0,0.00020631,2]
[339226837,1727376632095,-94.55783781,0.00020631,2]
[339226838,1727376632547,-410.44216219,0.00020631,2]
[339226839,1727376632557,-505.0,0.00020631,2]
[339226840,1727376632567,-505.0,0.00020631,2]
[339226841,1727376632576,-505.0,0.00020631,2]
[339226842,1727376632586,-505.0,0.00020631,2]
[339226843,1727376632596,-505.0,0.00020631,2]
[339226844,1727376632770,-153.0,0.00020631,2]
[339226845,1727376632780,-153.0,0.00020631,2]
[339226846,1727376632793,-505.0,0.00020635,2]
[339226847,1727376632804,-505.0,0.00020635,2]
[339226848,1727376632814,-505.0,0.00020635,2]
[339226849,1727376632824,-505.0,0.00020635,2]
[339226850,1727376632834,-505.0,0.00020635,2]
[339226851,1727376632844,-505.0,0.00020635,2]
[339226852,1727376632854,-505.0,0.00020635,2]
[339226853,1727376632864,-505.0,0.00020635,2]
[339226854,1727376632874,-505.0,0.00020635,2]
[339226855,1727376632885,-312.53237281,0.00020635,2]
[339226881,1727376638330,-192.46762719,0.00020635,2]
[339226882,1727376638339,-505.0,0.00020635,2]
[339226883,1727376638350,-489.70524981,0.00020635,2]
[339226884,1727376638457,-15.29475019,0.00020635,2]
[339226885,1727376638468,-505.0,0.00020635,2]
[339226886,1727376638478,-505.0,0.00020635,2]
[339226887,1727376638489,-153.0,0.00020635,2]
[339226888,1727376638498,-153.0,0.00020635,2]
[339226889,1727376638508,-505.0,0.00020638,2]
[339226890,1727376638519,-505.0,0.00020638,2]
[339226891,1727376638529,-505.0,0.00020638,2]
[339226892,1727376638539,-505.0,0.00020638,2]
[339226893,1727376638549,-505.0,0.00020638,2]
[339226894,1727376638559,-505.0,0.00020638,2]
[339226895,1727376638569,-505.0,0.00020638,2]
[339226896,1727376638578,-505.0,0.00020638,2]
[339226897,1727376638588,-505.0,0.00020638,2]
[339226898,1727376638597,-505.0,0.00020638,2]
[339226899,1727376638607,-505.0,0.00020638,2]
[339226900,1727376638616,-505.0,0.00020638,2]
[339226901,1727376638627,-505.0,0.00020638,2]
[339226902,1727376638640,-505.0,0.00020638,2]
[339226903,1727376638650,-505.0,0.00020638,2]
[339226904,1727376638659,-505.0,0.00020638,2]
[339226905,1727376638668,-505.0,0.00020638,2]
[339226906,1727376638678,-153.0,0.00020638,2]
[339226907,1727376638687,-153.0,0.00020638,2]
[339226908,1727376638695,-153.0,0.00020638,2]
[339226909,1727376638705,-6570.12850789,0.00020837,2]
[339226910,1727376638714,-568.23985286,0.00020899,2]
[339226911,1727376638724,-336.0,0.000209,3]
[339226912,1727376638733,-166.666666,0.00020973,2]
[339226913,1727376638742,-6570.12850789,0.00021341,2]
[339226914,1727376638751,-6570.12850789,0.0002163,2]
[339226915,1727376638760,-6570.12850789,0.0002166,2]
[339226916,1727376638771,-1000.0,0.00021889,2]
[339226917,1727376638780,-2143.94011887,0.00021889,2]
[339226918,1727376638789,-3848.0,0.00021899,2]
[339226919,1727376638799,-2022.53203335,0.00021899,2]
[339226920,1727376638808,-500.0,0.00021917,2]
[339226921,1727376638818,-500.0,0.00021973,2]
[339226922,1727376638827,-435.14852884,0.00021988,2]
[339226923,1727376638837,-500.0,0.00021988,2]
[339226924,1727376638846,-290.73452272,0.00021988,2]
[339226925,1727376638857,-500.0,0.00021988,2]
[339226926,1727376638867,-500.0,0.00021988,2]
[339226927,1727376638879,-537.24030224,0.00021988,2]
[339226928,1727376638889,-278486.235786,0.00021989,3]
[339226929,1727376638900,-19241.1042788,0.00021989,3]
[339226930,1727376638910,-973.25237129,0.00021998,2]
[339226931,1727376638919,-500.0,0.00021999,120]
[339226932,1727376638930,-500.0,0.00021999,120]
[339226933,1727376638941,-500.0,0.00021999,120]
[339226934,1727376638951,-500.0,0.00021999,120]
[339226935,1727376638960,-504.15598698,0.00021999,120]
[339226936,1727376638970,-505.45652523,0.00021999,120]
[339226937,1727376638980,-500.0,0.00021999,120]
[339226938,1727376638989,-500.0,0.00021999,120]
[339226939,1727376638999,-406.31068931,0.00021999,120]
[339226940,1727376639009,-501.40429349,0.00021999,120]
[339226941,1727376639019,-500.0,0.00021999,120]
[339226942,1727376639029,-468.24505317,0.00021999,120]
[339226943,1727376639039,-501.45629944,0.00021999,120]
[339226944,1727376639049,-500.0,0.00021999,120]
[339226945,1727376639058,-433.0437552,0.00021999,120]
[339226946,1727376639068,-500.0,0.00021999,120]
[339226947,1727376639077,-160.5107763,0.00021999,120]
[339226948,1727376639087,-500.0,0.00021999,120]
[339226949,1727376639097,-502.13564948,0.00021999,120]
[339226950,1727376639106,-500.0,0.00021999,120]
[339226951,1727376639116,-500.0,0.00021999,120]
[339226952,1727376639125,-501.52354579,0.00021999,120]
[339226953,1727376639141,-500.0,0.00021999,120]
[339226954,1727376639150,-502.90496196,0.00021999,120]
[339226955,1727376639160,-500.0,0.00021999,120]
[339226956,1727376639170,-500.0,0.00021999,120]
[339226957,1727376639179,-500.0,0.00021999,120]
[339226958,1727376639188,-500.0,0.00021999,120]
[339226959,1727376639198,-503.39798103,0.00021999,120]
[339226960,1727376639207,-500.0,0.00021999,120]
[339226961,1727376639217,-502.36019001,0.00021999,120]
[339226962,1727376639227,-500.0,0.00021999,120]
[339226963,1727376639236,-476.96277557,0.00021999,120]
[339226964,1727376639245,-500.0,0.00021999,120]
[339226965,1727376639255,-500.0,0.00021999,120]
[339226966,1727376639265,-500.0,0.00021999,120]
[339226967,1727376639274,-503.19260658,0.00021999,120]
[339226968,1727376639284,-500.0,0.00021999,120]
[339226969,1727376639293,-500.0,0.00021999,120]
[339226970,1727376639302,-502.09868353,0.00021999,120]
[339226971,1727376639312,-516.2292865,0.00021999,120]
[339226972,1727376639321,-500.0,0.00021999,120]
[339226973,1727376639331,-225.79366026,0.00021999,120]
[339226974,1727376639340,-505.17757509,0.00021999,120]
[339226975,1727376639350,-500.0,0.00021999,120]
[339226976,1727376639362,-505.81315304,0.00021999,120]
[339226977,1727376639372,-500.0,0.00021999,120]
[339226980,1727376639387,-500.95213592,0.00021999,120]
[339226982,1727376639399,-503.82445046,0.00021999,120]
[339226983,1727376639410,-500.0,0.00021999,120]
[339226984,1727376639419,-500.0,0.00021999,120]
[339226986,1727376639429,-230.08,0.00021999,120]
[339226987,1727376639438,-566.95106437,0.00021999,120]
[339226988,1727376639448,-500.0,0.00021999,120]
[339226989,1727376639457,-500.0,0.00021999,120]
[339226991,1727376639467,-500.0,0.00021999,120]
[339226993,1727376639476,-513.21907142,0.00021999,120]
[339226995,1727376639486,-500.0,0.00021999,120]
[339226997,1727376639495,-500.0,0.00021999,120]
[339226999,1727376639504,-500.0,0.00021999,120]
[339227001,1727376639514,-500.0,0.00021999,120]
[339227003,1727376639523,-500.0,0.00021999,120]
[339227005,1727376639532,-500.0,0.00021999,120]
[339227007,1727376639541,-500.0,0.00021999,120]
[339227009,1727376639551,-500.0,0.00021999,120]
[339227011,1727376639560,-585.13958455,0.00021999,120]
[339227013,1727376639569,-500.0,0.00021999,120]
[339227015,1727376639578,-500.0,0.00021999,120]
[339227017,1727376639588,-500.0,0.00021999,120]
[339227018,1727376639598,-500.0,0.00021999,120]
[339227020,1727376639607,-500.0,0.00021999,120]
[339227021,1727376639616,-500.0,0.00021999,120]
[339227022,1727376639626,-397.92905079,0.00021999,120]
[339227024,1727376639641,-500.0,0.00021999,120]
[339227025,1727376639651,-501.31373715,0.00021999,120]
[339227026,1727376639660,-500.0,0.00021999,120]
[339227027,1727376639669,-500.0,0.00021999,120]
[339227028,1727376639679,-500.0,0.00021999,120]
[339227029,1727376639688,-500.0,0.00021999,120]
[339227030,1727376639697,-500.0,0.00021999,120]
[339227031,1727376639706,-500.0,0.00021999,120]
[339227032,1727376639715,-500.0,0.00021999,120]
[339227033,1727376639725,-440.83748152,0.00021999,120]
[339227034,1727376639734,-500.0,0.00021999,120]
[339227035,1727376639743,-500.0,0.00021999,120]
[339227036,1727376639753,-504.58991093,0.00021999,120]
[339227037,1727376639762,-608.34052896,0.00021999,120]
[339227038,1727376639772,-500.0,0.00021999,120]
[339227039,1727376639781,-501.27515474,0.00021999,120]
[339227040,1727376639790,-509.68535942,0.00021999,120]
[339227041,1727376639799,-500.0,0.00021999,120]
[339227042,1727376639809,-500.0,0.00021999,120]
[339227043,1727376639820,-502.25984601,0.00021999,120]
[339227044,1727376639829,-500.0,0.00021999,120]
[339227045,1727376639838,-500.0,0.00021999,2]
[339227047,1727376639848,-500.0,0.00021999,2]
[339227049,1727376639857,-500.0,0.00021999,2]
[339227051,1727376639866,-517.19384589,0.00021999,2]
[339227052,1727376639876,-500.0,0.00021999,120]
[339227053,1727376639887,-500.0,0.00021999,120]
[339227054,1727376639897,-500.0,0.00021999,120]
[339227055,1727376639906,-425.87307736,0.00021999,120]
[339227056,1727376639915,-500.0,0.00021999,120]
[339227057,1727376639925,-500.50813288,0.00021999,120]
[339227058,1727376639934,-500.0,0.00021999,120]
[339227059,1727376639943,-500.0,0.00021999,120]
[339227060,1727376639955,-437.25711345,0.00021999,120]
[339227061,1727376639964,-500.0,0.00021999,120]
[339227062,1727376639973,-501.43252782,0.00021999,120]
[339227063,1727376639984,-505.60313353,0.00021999,120]
[339227064,1727376639995,-500.0,0.00021999,120]
[339227065,1727376640005,-501.96123674,0.00021999,120]
[339227066,1727376640015,-500.0,0.00021999,120]
[339227067,1727376640024,-500.0,0.00021999,120]
[339227068,1727376640034,-502.29052032,0.00021999,120]
[339227069,1727376640043,-500.0,0.00021999,120]
[339227070,1727376640053,-500.0,0.00021999,120]
[339227071,1727376640062,-507.08045125,0.00021999,120]
[339227072,1727376640071,-500.0,0.00021999,120]
[339227073,1727376640081,-501.90307515,0.00021999,120]
[339227074,1727376640091,-500.0,0.00021999,120]
[339227075,1727376640100,-500.0,0.00021999,120]
[339227076,1727376640110,-500.0,0.00021999,120]
[339227077,1727376640119,-500.0,0.00021999,120]
[339227078,1727376640128,-500.0,0.00021999,120]
[339227079,1727376640142,-633.47533408,0.00021999,120]
[339227080,1727376640155,-502.50222107,0.00021999,120]
[339227081,1727376640165,-501.82126435,0.00021999,120]
[339227082,1727376640174,-500.0,0.00021999,120]
[339227083,1727376640184,-162.61424482,0.00021999,120]
[339227084,1727376640194,-577.60404716,0.00021999,120]
[339227085,1727376640204,-1719.55,0.00021999,7]
[339227086,1727376640213,-1719.55,0.00021999,7]
[339227087,1727376640223,-1719.55,0.00021999,7]
[339227088,1727376640232,-1719.55,0.00021999,7]
[339227089,1727376640241,-1719.55,0.00021999,7]
[339227090,1727376640251,-1719.55,0.00021999,7]
[339227091,1727376640260,-1719.55,0.00021999,7]
[339227092,1727376640270,-1719.55,0.00021999,7]
[339227093,1727376640279,-1719.55,0.00021999,7]
[339227094,1727376640288,-1719.55,0.00021999,7]
[339227095,1727376640297,-1719.55,0.00021999,7]
[339227096,1727376640307,-1719.55,0.00021999,7]
[339227097,1727376640316,-1719.55,0.00021999,7]
[339227098,1727376640325,-1719.55,0.00021999,7]
[339227099,1727376640336,-1719.55,0.00021999,7]
[339227100,1727376640347,-1719.55,0.00021999,7]
[339227101,1727376640360,-1719.55,0.00021999,7]
[339227102,1727376640370,-1719.55,0.00021999,7]
[339227103,1727376640379,-1719.55,0.00021999,7]
[339227104,1727376640390,-1719.55,0.00021999,7]
[339227105,1727376640401,-1719.55,0.00021999,7]
[339227106,1727376640410,-1719.55,0.00021999,7]
[339227107,1727376640419,-1719.55,0.00021999,7]
[339227108,1727376640432,-1719.70836911,0.00021999,7]
[339227109,1727376640441,-500.0,0.00021999,10]
[339227110,1727376640542,-500.0,0.00021999,10]
[339227111,1727376640565,-500.0,0.00021999,10]
[339227112,1727376640574,-501.54400137,0.00021999,120]
[339227113,1727376640583,-1000.0,0.00021999,2]
[339227114,1727376640594,-554.76196888,0.00021999,10]
[339227115,1727376640604,-1000.0,0.00021999,2]
[339227116,1727376640613,-1000.0,0.00021999,2]
[339227117,1727376640622,-1000.0,0.00021999,2]
[339227118,1727376640632,-1000.0,0.00021999,2]
[339227119,1727376640642,-1000.0,0.00021999,2]
[339227120,1727376640651,-1000.0,0.00021999,2]
[339227121,1727376640661,-1000.0,0.00021999,2]
[339227122,1727376640670,-1000.0,0.00021999,2]
[339227123,1727376640679,-1000.0,0.00021999,2]
[339227124,1727376640689,-500.0,0.00021999,120]
[339227125,1727376640698,-500.0,0.00021999,120]
[339227126,1727376640708,-1000.0,0.00021999,2]
[339227127,1727376640717,-500.0,0.00021999,120]
[339227128,1727376640727,-500.0,0.00021999,120]
[339227129,1727376640737,-517.01180581,0.00021999,120]
[339227130,1727376640748,-1000.0,0.00021999,2]
[339227131,1727376640759,-1000.0,0.00021999,2]
[339227132,1727376640768,-1000.0,0.00021999,2]
[339227133,1727376640778,-1000.0,0.00021999,2]
[339227134,1727376640787,-1000.0,0.00021999,2]
[339227135,1727376640798,-1000.0,0.00021999,2]
[339227136,1727376640807,-1000.0,0.00021999,2]
[339227137,1727376640816,-1000.0,0.00021999,2]
[339227138,1727376640825,-1000.0,0.00021999,2]
[339227139,1727376640835,-1000.0,0.00021999,2]
[339227140,1727376640844,-1000.0,0.00021999,2]
[339227141,1727376640854,-598.72558401,0.00021999,2]
[339227142,1727376640863,-500.0,0.00021999,120]
[339227143,1727376640872,-509.504214,0.00021999,120]
[339227144,1727376640882,-500.0,0.00021999,120]
[339227145,1727376640894,-500.0,0.00021999,120]
[339227146,1727376640905,-500.0,0.00021999,120]
[339227147,1727376640915,-500.0,0.00021999,120]
[339227148,1727376640926,-500.0,0.00021999,120]
[339227149,1727376640937,-388.95833737,0.00021999,120]
[339227150,1727376640947,-500.0,0.00021999,120]
[339227151,1727376640957,-506.72602098,0.00021999,120]
[339227152,1727376640967,-500.0,0.00021999,120]
[339227153,1727376640976,-503.14116109,0.00021999,120]
[339227154,1727376640986,-500.0,0.00021999,120]
[339227155,1727376640995,-500.0,0.00021999,120]
[339227156,1727376641004,-500.0,0.00021999,120]
[339227157,1727376641014,-503.84850844,0.00021999,120]
[339227158,1727376641024,-505.83924349,0.00021999,120]
[339227159,1727376641033,-500.0,0.00021999,120]
[339227160,1727376641044,-504.03148342,0.00021999,120]
[339227161,1727376641053,-514.04064246,0.00021999,120]
[339227162,1727376641062,-500.0,0.00021999,120]
[339227163,1727376641071,-500.0,0.00021999,120]
[339227164,1727376641082,-500.0,0.00021999,120]
[339227165,1727376641092,-500.0,0.00021999,120]
[339227166,1727376641103,-434.48154708,0.00021999,120]
[339227167,1727376641112,-500.0,0.00021999,120]
[339227168,1727376641121,-503.29245743,0.00021999,120]
[339227169,1727376641132,-510.84484909,0.00021999,120]
[339227170,1727376641143,-500.0,0.00021999,2]
[339227171,1727376641152,-500.0,0.00021999,2]
[339227172,1727376641162,-500.0,0.00021999,2]
[339227173,1727376641171,-500.0,0.00021999,2]
[339227174,1727376641181,-500.0,0.00021999,2]
[339227175,1727376641191,-500.0,0.00021999,2]
[339227176,1727376641200,-500.0,0.00021999,2]
[339227177,1727376641210,-500.0,0.00021999,2]
[339227178,1727376641220,-500.0,0.00021999,2]
[339227179,1727376641230,-500.0,0.00021999,2]
[339227180,1727376641240,-500.0,0.00021999,2]
[339227181,1727376641249,-613.92892393,0.00021999,2]
[339227182,1727376641259,-500.0,0.00021999,120]
[339227183,1727376641269,-502.63370629,0.00021999,120]